fUST/lending_fUST_20260117
["ID","MTS","AMOUNT","RATE_DAILY","PERIOD"]
[402287451,1768649441002,-500.0,0.00013698,2]
[402287452,1768649441012,-500.0,0.00013698,2]
[402287453,1768649441023,-500.0,0.00013698,2]
[402287454,1768649441033,-500.0,0.00013698,2]
[402287455,1768649441042,-500.0,0.00013698,2]
[402287456,1768649441051,-500.0,0.00013698,2]
[402287457,1768649441062,-500.0,0.00013698,2]
[402287458,1768649441073,-500.0,0.00013698,2]
[402287459,1768649441083,-500.0,0.00013698,2]
[402287460,1768649441092,-500.0,0.00013698,2]
[402287461,1768649441102,-500.0,0.00013698,2]
[402287462,1768649441111,-500.0,0.00013698,2]
[402287463,1768649441121,-500.0,0.00013698,2]
[402287464,1768649441132,-500.0,0.00013698,2]
[402287465,1768649441142,-500.0,0.00013698,2]
[402287466,1768649441153,-500.0,0.00013698,2]
[402287467,1768649441163,-500.0,0.00013698,2]
[402287468,1768649441172,-500.0,0.00013698,2]
[402287469,1768649441183,-1000.0,0.00013699,2]
[402287470,1768649441262,-290.221233,0.00013699,2]
[402287471,1768649441271,-400.0,0.00013699,2]
[402287472,1768649441281,-155.0,0.00013699,2]
[402287473,1768649441292,-431.73453214,0.00013699,2]
[402287474,1768649441304,-158.0,0.00013699,2]
[402287475,1768649441314,-500.0,0.00013699,2]
[402287476,1768649441323,-500.0,0.00013699,2]
[402287477,1768649441332,-500.0,0.00013699,2]
[402287478,1768649441347,-500.0,0.00013699,2]
[402287479,1768649441358,-500.0,0.00013699,2]
[402287480,1768649441375,-502.61209366,0.00013699,2]
[402287481,1768649441384,-158.0,0.00013699,2]
[402287482,1768649441396,-158.0,0.00013699,2]
[402287483,1768649441405,-500.0,0.00013699,2]
[402287484,1768649441414,-160.0,0.00013699,2]
[402287485,1768649441424,-500.0,0.00013699,2]
[402287486,1768649441434,-260.20000005,0.00013699,2]
[402287487,1768649441443,-250.52997418,0.00013699,2]
[402287488,1768649441452,-500.0,0.00013699,2]
[402287489,1768649441462,-500.0,0.00013699,2]
[402287490,1768649441472,-500.0,0.00013699,2]
[402287491,1768649441481,-500.0,0.00013699,2]
[402287492,1768649441490,-500.0,0.00013699,2]
[402287493,1768649441499,-500.0,0.00013699,2]
[402287494,1768649441509,-198.2,0.00013699,2]
[402287495,1768649441518,-160.0,0.00013699,2]
[402287496,1768649441527,-500.0,0.00013699,2]
[402287497,1768649441536,-500.0,0.00013699,2]
[402287498,1768649441545,-500.0,0.00013699,2]
[402287499,1768649441556,-500.0,0.00013699,2]
[402287500,1768649441566,-500.0,0.00013699,2]
[402287501,1768649441575,-388.4475177,0.00013699,2]
[402287502,1768649441586,-151.0,0.000137,2]
[402287503,1768649441595,-2347.87260389,0.00013739,2]
[402287504,1768649441604,-158.63802829,0.00013742,2]
[402287505,1768649441614,-151.0,0.00013742,2]
[402287506,1768649441623,-151.0,0.00013742,2]
[402287507,1768649441632,-500.0,0.00013742,2]
[402287508,1768649441642,-436.72021913,0.00013742,2]
[402287509,1768649441651,-343.3,0.00013775,2]
[402287510,1768649441660,-10000.0,0.00013775,2]
[402287511,1768649441670,-10000.0,0.00013775,2]
[402287512,1768649441679,-2434.74389024,0.00013794,2]
[402287513,1768649441688,-10000.0,0.00013803,2]
[402287514,1768649441698,-1308.98,0.00013803,2]
[402287515,1768649441707,-385.28787088,0.00013805,2]
[402287516,1768649441716,-1000.0,0.00013821,2]
[402287517,1768649441726,-1000.0,0.00013821,2]
[402287518,1768649441735,-505.69222847,0.00013821,2]
[402287519,1768649441744,-502.83955258,0.00013821,2]
[402287520,1768649441756,-166.45896527,0.00013821,2]
[402287521,1768649441766,-1000.0,0.00013821,2]
[402287522,1768649441776,-1000.0,0.00013821,2]
[402287523,1768649441786,-1000.0,0.00013821,2]
[402287524,1768649441796,-1000.0,0.00013821,2]
[402287525,1768649441806,-778.0,0.00013822,2]
[402287526,1768649441818,-500.0,0.00013822,2]
[402287527,1768649441828,-500.0,0.00013822,2]
[402287528,1768649441839,-150.19066167,0.00013822,2]
[402287529,1768649441847,-150.58492979,0.00013822,2]
[402287530,1768649441858,-2524.82941417,0.00013849,2]
[402287531,1768649441868,-2618.2481025,0.00013904,2]
[402287532,1768649441878,-370.16,0.00013906,2]
[402287533,1768649441887,-297.91529275,0.00013959,2]
[402287534,1768649441897,-778.0,0.00013959,2]
[402287535,1768649441907,-500.0,0.00013959,2]
[402287536,1768649441917,-500.0,0.00013959,2]
[402287537,1768649441926,-151.49549108,0.00013959,2]
[402287538,1768649441937,-5797.90093516,0.0001398,2]
[402287539,1768649441948,-151.0,0.00014,2]
[402287540,1768649441958,-100000.0,0.00014006,2]
[402287541,1768649441967,-300.946978,0.00014006,2]
[402287542,1768649441977,-300.946978,0.00014006,2]
[402287543,1768649441986,-300.946978,0.00014006,2]
[402287544,1768649441996,-300.946978,0.00014006,2]
[402287545,1768649442006,-31110.0,0.00014012,2]
[402287546,1768649442016,-151.0,0.00014012,2]
[402287547,1768649442026,-461.67526834,0.00014012,2]
[402287548,1768649442035,-393.42090435,0.00014012,2]
[402287549,1768649442044,-2230.315306,0.00014012,2]
[402287550,1768649442053,-152.0,0.00014029,2]
[402287551,1768649442063,-302.0,0.00014029,2]
[402287552,1768649442072,-151.0,0.00014029,2]
[402287553,1768649442082,-151.0,0.00014029,2]
[402287554,1768649442091,-778.0,0.00014096,2]
[402287555,1768649442100,-500.0,0.00014096,2]
[402287556,1768649442110,-500.0,0.00014096,2]
[402287557,1768649442119,-600.0,0.00014221,2]
[402287558,1768649442128,-778.0,0.00014233,2]
[402287559,1768649442138,-500.0,0.00014233,2]
[402287560,1768649442147,-500.0,0.00014233,2]
[402287561,1768649442157,-1000.0,0.00014247,2]
[402287562,1768649442166,-1000.0,0.00014247,2]
[402287563,1768649442176,-505.35037186,0.00014247,2]
[402287564,1768649442185,-1000.0,0.00014247,2]
[402287565,1768649442195,-1002.84499725,0.00014247,2]
[402287566,1768649442203,-1000.0,0.00014247,2]
[402287567,1768649442212,-1000.0,0.00014247,2]
[402287568,1768649442222,-1000.0,0.00014247,2]
[402287569,1768649442231,-1000.0,0.00014247,2]
[402287570,1768649442240,-1000.0,0.00014247,2]
[402287571,1768649442250,-502.15537152,0.00014247,2]
[402287572,1768649442259,-194.1362209,0.00014247,2]
[402287573,1768649442269,-500.43334725,0.00014247,2]
[402287574,1768649442278,-1000.0,0.00014247,2]
[402287575,1768649442287,-1097.74982003,0.00014247,2]
[402287576,1768649442296,-1000.0,0.00014247,2]
[402287577,1768649442306,-1000.0,0.00014247,2]
[402287578,1768649442315,-153.0,0.00014247,2]
[402287579,1768649442324,-602.3409351,0.00014247,2]
[402287580,1768649442334,-2102.42376511,0.00014339,2]
[402287581,1768649442343,-166.0,0.00014357,2]
[402287582,1768649442352,-348.0,0.00014357,2]
[402287583,1768649442362,-172.0,0.00014357,2]
[402287584,1768649442372,-348.0,0.00014357,2]
[402287585,1768649442381,-348.0,0.00014357,2]
[402287586,1768649442390,-348.0,0.00014357,2]
[402287587,1768649442399,-348.0,0.00014357,2]
[402287588,1768649442408,-348.0,0.00014357,2]
[402287589,1768649442418,-348.0,0.00014357,2]
[402287590,1768649442428,-166.0,0.00014357,2]
[402287591,1768649442437,-166.0,0.00014357,2]
[402287592,1768649442446,-166.0,0.00014357,2]
[402287593,1768649442456,-298.99381889,0.00014357,2]
[402287594,1768649442466,-1000.0,0.00014368,2]
[402287595,1768649442475,-1500.0,0.00014368,2]
[402287597,1768649442484,-1500.0,0.00014368,2]
[402287598,1768649442493,-500.0,0.00014368,2]
[402287599,1768649442502,-1500.0,0.00014368,2]
[402287600,1768649442511,-1500.0,0.00014368,2]
[402287601,1768649442519,-778.0,0.0001437,2]
[402287602,1768649442528,-500.0,0.0001437,2]
[402287603,1768649442538,-500.0,0.0001437,2]
[402287604,1768649442547,-168.0,0.0001439,2]
[402287605,1768649442558,-151.0,0.000144,2]
[402287606,1768649442571,-650.865863,0.00014494,2]
[402287607,1768649442586,-778.0,0.000145,2]
[402287609,1768649442596,-778.0,0.00014507,2]
[402287611,1768649442606,-500.0,0.00014507,2]
[402287613,1768649442616,-500.0,0.00014507,2]
[402287615,1768649442625,-1759.84465884,0.00014509,2]
[402287618,1768649442635,-5000.0,0.0001451,2]
[402287621,1768649442645,-832.8568996,0.00014555,2]
[402287623,1768649442655,-32261.07,0.0001456,2]
[402287625,1768649442665,-478.75725327,0.0001456,2]
[402287627,1768649442674,-2312.83697232,0.0001456,2]
[402287629,1768649442684,-348.0,0.00014631,2]
[402287631,1768649442694,-151.0,0.00014631,2]
[402287633,1768649442704,-348.0,0.00014631,2]
[402287635,1768649442714,-348.0,0.00014631,2]
[402287637,1768649442724,-348.0,0.00014631,2]
[402287639,1768649442734,-348.0,0.00014631,2]
[402287641,1768649442744,-348.0,0.00014631,2]
[402287644,1768649442755,-348.0,0.00014631,2]
[402287646,1768649442767,-172.0,0.00014631,2]
[402287648,1768649442776,-152.0,0.00014631,2]
[402287650,1768649442785,-156.35103018,0.00014631,2]
[402287651,1768649442795,-152.0,0.00014631,2]
[402287652,1768649442804,-152.0,0.00014631,2]
[402287653,1768649442813,-152.0,0.00014631,2]
[402287654,1768649442823,-152.0,0.00014631,2]
[402287655,1768649442832,-151.0,0.00014631,2]
[402287656,1768649442841,-151.0,0.00014631,2]
[402287657,1768649442850,-151.0,0.00014631,2]
[402287658,1768649442860,-151.0,0.00014631,2]
[402287659,1768649442869,-151.0,0.00014631,2]
[402287660,1768649442879,-151.0,0.00014631,2]
[402287661,1768649442888,-151.0,0.00014631,2]
[402287662,1768649442898,-151.0,0.00014631,2]
[402287663,1768649442907,-151.0,0.00014631,2]
[402287664,1768649442916,-301.61924279,0.00014631,2]
[402287665,1768649442925,-348.0,0.00014631,2]
[402287666,1768649442935,-348.0,0.00014631,2]
[402287667,1768649442944,-348.0,0.00014631,2]
[402287668,1768649442954,-334.44262798,0.00014631,2]
[402287669,1768649442963,-778.0,0.00014644,2]
[402287671,1768649442972,-500.0,0.00014644,2]
[402287672,1768649442981,-500.0,0.00014644,2]
[402287673,1768649442991,-385.28787088,0.0001465,2]
[402287674,1768649443000,-194.3299959,0.00014655,2]
[402287675,1768649443010,-151.0,0.000147,2]
[402287677,1768649443019,-800.0,0.00014737,2]
[402287679,1768649443029,-900.0,0.00014768,2]
[402287681,1768649443038,-778.0,0.00014781,2]
[402287683,1768649443048,-500.0,0.00014781,2]
[402287685,1768649443057,-500.0,0.00014781,2]
[402287686,1768649443066,-544.3326671,0.00014795,2]
[402287687,1768649443075,-1500.0,0.00014795,2]
[402287688,1768649443084,-1500.0,0.00014795,2]
[402287689,1768649443093,-1500.0,0.00014795,2]
[402287690,1768649443103,-502.31117812,0.00014795,2]
[402287691,1768649443112,-166.91973232,0.00014795,2]
[402287692,1768649443122,-519.10615049,0.00014795,2]
[402287693,1768649443131,-648.13731473,0.00014795,2]
[402287694,1768649443141,-1500.0,0.00014795,2]
[402287695,1768649443150,-1500.0,0.00014795,2]
[402287696,1768649443159,-1500.0,0.00014795,2]
[402287697,1768649443168,-1500.0,0.00014795,2]
[402287698,1768649443177,-162.380719,0.00014833,2]
[402287700,1768649443187,-300.946978,0.00014838,2]
[402287702,1768649443196,-300.946978,0.00014838,2]
[402287703,1768649443205,-300.946978,0.00014838,2]
[402287705,1768649443214,-300.946978,0.00014838,2]
[402287707,1768649443223,-823.0,0.00014838,2]
[402287708,1768649443234,-4790.51332387,0.00014848,2]
[402287709,1768649443243,-800.0,0.00014849,2]
[402287710,1768649443252,-3292.0,0.00014891,2]
[402287711,1768649443261,-504.15629489,0.00014916,2]
[402287712,1768649443273,-2000.0,0.00014916,2]
[402287713,1768649443283,-393.580811,0.00014916,7]
[402287714,1768649443293,-2000.0,0.00014916,2]
[402287715,1768649443302,-2000.0,0.00014916,2]
[402287716,1768649443312,-778.0,0.00014918,2]
[402287717,1768649443322,-500.0,0.00014918,2]
[402287718,1768649443332,-603.5153781,0.00014918,2]
[402287719,1768649443342,-2547.41039476,0.00014948,5]
[402287720,1768649443350,-330.72995222,0.00015,2]
[402287721,1768649443359,-2004.51400452,0.00015,2]
[402287722,1768649443369,-90000.0,0.00015,2]
[402287723,1768649443378,-103390.33973653,0.00015,7]
[402287724,1768649443387,-778.0,0.00015055,2]
[402287725,1768649443395,-500.0,0.00015055,2]
[402287726,1768649443404,-188.101356,0.00015068,2]
[402287727,1768649443414,-870.7310452,0.00015091,2]
[402287728,1768649443423,-651.910996,0.00015092,2]
[402287729,1768649443432,-151.0,0.000151,2]
[402287730,1768649443442,-33454.72959,0.00015108,2]
[402287731,1768649443451,-496.47127164,0.00015108,2]
[402287732,1768649443460,-2398.4119403,0.00015108,2]
[402287733,1768649443470,-1222.553862,0.00015111,7]
[402287734,1768649443479,-387.41635317,0.00015134,2]
[402287735,1768649443488,-778.0,0.00015192,2]
[402287736,1768649443498,-500.0,0.00015192,2]
[402287737,1768649443507,-558.56952716,0.000152,2]
[402287738,1768649443516,-412.13348321,0.000152,2]
[402287739,1768649443528,-3011.235873,0.00015307,7]
[402287740,1768649443538,-1200.0,0.00015316,2]
[402287741,1768649443547,-778.0,0.00015329,2]
[402287742,1768649443556,-500.0,0.00015329,2]
[402287743,1768649443565,-2123.55526284,0.00015342,2]
[402287744,1768649443575,-1561.32249094,0.00015342,2]
[402287745,1768649443584,-2000.0,0.00015342,2]
[402287746,1768649443593,-2000.0,0.00015342,2]
[402287747,1768649443602,-1503.66607308,0.00015342,2]
[402287748,1768649443612,-2000.0,0.00015342,2]
[402287749,1768649443621,-382.37059,0.00015386,7]
[402287750,1768649443630,-1252.245679,0.00015386,7]
[402287751,1768649443640,-1208.500621,0.00015386,7]
[402287752,1768649443650,-8445.77066,0.00015386,7]
[402287753,1768649443660,-300.946978,0.00015387,2]
[402287754,1768649443670,-300.946978,0.00015387,2]
[402287755,1768649443681,-300.946978,0.00015387,2]
[402287756,1768649443691,-300.946978,0.00015387,2]
[402287757,1768649443701,-275.1798858,0.000154,2]
[402287758,1768649443711,-180.52907695,0.000154,2]
[402287759,1768649443721,-500.70048562,0.000154,2]
[402287760,1768649443731,-166.90016187,0.000154,2]
[402287761,1768649443741,-740.742031,0.000154,2]
[402287762,1768649443751,-159.5748091,0.000154,2]
[402287763,1768649443766,-1500.0,0.000154,2]
[402287764,1768649443776,-1501.88474,0.000154,2]
[402287765,1768649443785,-163.28,0.000154,2]
[402287766,1768649443793,-239.84577367,0.000154,2]
[402287767,1768649443803,-165.06,0.00015444,2]
[402287768,1768649443813,-206.44598023,0.00015464,2]
[402287769,1768649443822,-1500.0,0.00015464,2]
[402287770,1768649443835,-500.0,0.00015464,2]
[402287771,1768649443844,-778.0,0.00015466,2]
[402287772,1768649443853,-500.0,0.00015466,2]
[402287773,1768649443862,-511.77274,0.00015475,7]
[402287774,1768649443871,-250.57018,0.00015477,7]
[402287775,1768649443881,-1689.398554,0.00015493,7]
[402287776,1768649443890,-385.28787088,0.00015494,2]
[402287777,1768649443900,-558.56952716,0.00015499,5]
[402287778,1768649443909,-412.13348321,0.00015499,5]
[402287779,1768649443917,-151.0,0.000155,2]
[402287780,1768649443926,-727.950667,0.000155,7]
[402287781,1768649443935,-151.0,0.000155,2]
[402287782,1768649443945,-250.0,0.00015509,2]
[402287783,1768649443954,-163.28,0.000156,2]
[402287784,1768649443964,-778.0,0.00015603,2]
[402287785,1768649443974,-161.19749952,0.00015603,2]
[402287786,1768649443984,-585.568646,0.00015619,7]
[402287787,1768649443993,-34692.55458483,0.00015656,2]
[402287788,1768649444003,-514.84070869,0.00015656,2]
[402287789,1768649444012,-2487.15318209,0.00015656,2]
[402287790,1768649444022,-778.0,0.0001574,2]
[402287791,1768649444032,-558.56952716,0.00015798,9]
[402287792,1768649444042,-412.13348321,0.00015798,9]
[402287793,1768649444051,-151.0,0.000158,2]
[402287794,1768649444060,-151.0,0.000158,2]
[402287795,1768649444070,-163.28,0.000158,2]
[402287796,1768649444079,-160.44779279,0.00015828,2]
[402287797,1768649444088,-207.28,0.00015829,2]
[402287798,1768649444098,-1503.86573033,0.00015864,2]
[402287799,1768649444108,-778.0,0.00015877,2]
[402287800,1768649444117,-500.0,0.0001589,2]
[402287801,1768649444127,-2500.0,0.0001589,2]
[402287802,1768649444135,-832.8568996,0.00015981,2]
[402287803,1768649444145,-998.87805324,0.00016,2]
[402287804,1768649444154,-3000.0,0.00016,2]
[402287805,1768649444164,-12000.0,0.00016,2]
[402287806,1768649444173,-151.0,0.00016,2]
[402287807,1768649444182,-215.9665256,0.00016,2]
[402287808,1768649444193,-3000.0,0.0001601,2]
[402287809,1768649444202,-778.0,0.00016014,2]
[402287810,1768649444211,-3000.0,0.0001602,2]
[402287811,1768649444221,-476.21905,0.0001602,7]
[402287812,1768649444230,-2263.0,0.00016025,2]
[402287813,1768649444242,-3000.0,0.0001603,2]
[402287814,1768649444251,-373.779042,0.0001603,7]
[402287815,1768649444261,-344.709657,0.0001603,7]
[402287816,1768649444271,-2305.765902,0.0001603,7]
[402287817,1768649444280,-3000.0,0.0001604,2]
[402287818,1768649444290,-500.70048562,0.00016042,9]
[402287819,1768649444299,-3000.0,0.0001605,2]
[402287820,1768649444309,-168.0,0.00016053,2]
[402287821,1768649444318,-3000.0,0.0001606,2]
[402287822,1768649444327,-300.946978,0.00016062,2]
[402287823,1768649444336,-300.946978,0.00016062,2]
[402287824,1768649444345,-300.946978,0.00016062,2]
[402287825,1768649444355,-300.946978,0.00016062,2]
[402287826,1768649444364,-2263.0,0.00016062,2]
[402287827,1768649444374,-2743.817299,0.00016062,7]
[402287828,1768649444384,-2263.0,0.00016069,2]
[402287829,1768649444393,-650.267181,0.00016069,7]
[402287830,1768649444403,-3000.0,0.0001607,2]
[402287831,1768649444412,-168.0,0.00016073,2]
[402287832,1768649444421,-3000.0,0.0001608,2]
[402287833,1768649444431,-3000.0,0.0001609,2]
[402287834,1768649444441,-2263.0,0.00016092,2]
[402287835,1768649444451,-220.636192,0.00016092,7]
[402287836,1768649444460,-558.56952716,0.00016097,13]
[402287837,1768649444470,-412.13348321,0.00016097,13]
[402287838,1768649444480,-3000.0,0.000161,2]
[402287839,1768649444489,-497.571252,0.000161,7]
[402287840,1768649444499,-2263.0,0.00016101,2]
[402287841,1768649444509,-8077.22640448,0.00016109,2]
[402287842,1768649444519,-3000.0,0.0001611,2]
[402287843,1768649444530,-3000.0,0.0001612,2]
[402287844,1768649444541,-3608.47613542,0.00016121,2]
[402287845,1768649444550,-2263.0,0.00016121,2]
[402287846,1768649444560,-168.0,0.00016124,2]
[402287847,1768649444570,-3000.0,0.0001613,2]
[402287848,1768649444580,-761.684536,0.0001613,7]
[402287849,1768649444590,-3000.0,0.0001614,2]
[402287850,1768649444601,-239.362345,0.0001614,7]
[402287851,1768649444611,-3321.007063,0.0001614,7]
[402287852,1768649444621,-3000.0,0.0001615,2]
[402287853,1768649444630,-800.0,0.0001615,2]
[402287854,1768649444640,-778.0,0.00016151,2]
[402287855,1768649444649,-3000.0,0.0001616,2]
[402287856,1768649444659,-3000.0,0.0001617,2]
[402287857,1768649444668,-300.946978,0.0001617,2]
[402287858,1768649444678,-300.946978,0.0001617,2]
[402287859,1768649444687,-300.946978,0.0001617,2]
[402287860,1768649444695,-300.946971,0.0001617,2]
[402287861,1768649444704,-800.0,0.00016172,2]
[402287862,1768649444713,-800.0,0.00016174,2]
[402287863,1768649444723,-2263.0,0.00016178,2]
[402287864,1768649444733,-3000.0,0.0001618,2]
[402287865,1768649444743,-3000.0,0.0001619,2]
[402287866,1768649444753,-3000.0,0.000162,2]
[402287867,1768649444766,-151.0,0.000162,2]
[402287868,1768649444775,-151.0,0.000162,2]
[402287869,1768649444785,-35626.07771682,0.00016204,2]
[402287870,1768649444795,-533.88981491,0.00016204,2]
[402287871,1768649444804,-2579.17784983,0.00016204,2]
[402287872,1768649444813,-800.0,0.00016205,2]
[402287873,1768649444823,-3000.0,0.0001621,2]
[402287874,1768649444833,-800.0,0.0001621,2]
[402287875,1768649444843,-800.0,0.00016217,2]
[402287876,1768649444852,-800.0,0.00016218,2]
[402287877,1768649444861,-3000.0,0.0001622,2]
[402287878,1768649444870,-3000.0,0.0001623,2]
[402287879,1768649444879,-800.0,0.00016237,2]
[402287880,1768649444889,-3000.0,0.0001624,2]
[402287881,1768649444899,-3000.0,0.0001625,2]
[402287882,1768649444909,-3000.0,0.0001626,2]
[402287883,1768649444918,-3000.0,0.0001627,2]
[402287884,1768649444927,-3000.0,0.0001628,2]
[402287885,1768649444937,-168.0,0.00016281,2]
[402287886,1768649444947,-783.42207071,0.00016288,2]
[402287887,1768649444956,-3000.0,0.0001629,2]
[402287888,1768649444966,-800.0,0.00016293,2]
[402287889,1768649444976,-2263.0,0.00016294,2]
[402287890,1768649444985,-3000.0,0.000163,2]
[402287891,1768649444994,-1152.0,0.00016302,2]
[402287892,1768649445004,-3000.0,0.0001631,2]
[402287893,1768649445013,-445.15089026,0.0001631,2]
[402287894,1768649445022,-800.0,0.00016316,2]
[402287895,1768649445032,-3000.0,0.0001632,2]
[402287896,1768649445043,-800.0,0.00016324,2]
[402287897,1768649445052,-3000.0,0.0001633,2]
[402287898,1768649445061,-800.0,0.00016331,2]
[402287899,1768649445070,-558.13326427,0.00016332,2]
[402287900,1768649445080,-385.28787088,0.00016338,2]
[402287901,1768649445089,-14212.21684339,0.00016338,2]
[402287902,1768649445099,-2263.0,0.00016339,2]
[402287903,1768649445108,-3000.0,0.0001634,2]
[402287904,1768649445118,-3000.0,0.0001635,2]
[402287905,1768649445127,-3000.0,0.0001636,2]
[402287906,1768649445136,-800.0,0.0001636,2]
[402287907,1768649445146,-800.0,0.00016364,2]
[402287908,1768649445155,-2263.0,0.00016367,2]
[402287909,1768649445164,-3000.0,0.0001637,2]
[402287910,1768649445174,-3000.0,0.0001638,2]
[402287911,1768649445183,-800.0,0.0001638,2]
[402287912,1768649445193,-472.0,0.0001638,2]
[402287913,1768649445202,-3000.0,0.0001639,2]
[402287914,1768649445211,-558.56952716,0.00016395,16]
[402287915,1768649445221,-412.13348321,0.00016395,16]
[402287916,1768649445230,-3000.0,0.000164,2]
[402287917,1768649445239,-168.0,0.00016408,2]
[402287918,1768649445249,-3000.0,0.0001641,2]
[402287919,1768649445259,-800.0,0.00016414,2]
[402287920,1768649445269,-3000.0,0.0001642,2]
[402287921,1768649445278,-168.0,0.00016421,2]
[402287922,1768649445289,-3000.0,0.0001643,2]
[402287923,1768649445299,-296603.23625476,0.00016435,2]
[402287924,1768649445309,-212.54773642,0.00016437,2]
[402287925,1768649445319,-500.0,0.00016438,3]
[402287926,1768649445329,-590.40738298,0.00016438,3]
[402287927,1768649445340,-500.0,0.00016438,3]
[402287928,1768649445349,-500.0,0.00016438,3]
[402287929,1768649445360,-500.0,0.00016438,3]
[402287930,1768649445370,-500.0,0.00016438,3]
[402287931,1768649445380,-554.19378487,0.00016438,3]
[402287933,1768649445389,-500.0,0.00016438,3]
[402287935,1768649445400,-500.0,0.00016438,3]
[402287936,1768649445410,-500.0,0.00016438,3]
[402287937,1768649445420,-500.0,0.00016438,3]
[402287938,1768649445430,-500.0,0.00016438,3]
[402287940,1768649445440,-505.74293991,0.00016438,3]
[402287942,1768649445449,-500.0,0.00016438,3]
[402287944,1768649445459,-500.0,0.00016438,3]
[402287946,1768649445469,-500.0,0.00016438,3]
[402287948,1768649445479,-500.0,0.00016438,3]
[402287950,1768649445488,-1541.12,0.00016438,3]
[402287952,1768649445499,-500.64885102,0.00016438,3]
[402287954,1768649445508,-691.16,0.00016438,3]
[402287956,1768649445518,-500.0,0.00016438,3]
[402287958,1768649445529,-500.0,0.00016438,3]
[402287960,1768649445539,-424.34553456,0.00016438,3]
[402287962,1768649445550,-500.0,0.00016438,3]
[402287965,1768649445561,-500.0,0.00016438,3]
[402287967,1768649445571,-500.0,0.00016438,3]
[402287969,1768649445581,-500.0,0.00016438,3]
[402287970,1768649445592,-500.0,0.00016438,3]
[402287972,1768649445603,-500.0,0.00016438,3]
[402287974,1768649445613,-500.0,0.00016438,3]
[402287976,1768649445624,-464.68587701,0.00016438,3]
[402287978,1768649445635,-500.0,0.00016438,3]
[402287980,1768649445645,-500.0,0.00016438,3]
[402287982,1768649445654,-557.26,0.00016438,3]
[402287984,1768649445664,-904.31,0.00016438,3]
[402287986,1768649445675,-500.0,0.00016438,3]
[402287988,1768649445686,-500.0,0.00016438,3]
[402287990,1768649445695,-524.86,0.00016438,3]
[402287992,1768649445705,-500.0,0.00016438,3]
[402287994,1768649445715,-500.0,0.00016438,3]
[402287996,1768649445725,-544.01,0.00016438,3]
[402287998,1768649445734,-784.71,0.00016438,3]
[402288000,1768649445744,-953.58,0.00016438,3]
[402288002,1768649445754,-510.56,0.00016438,3]
[402288004,1768649445767,-500.0,0.00016438,3]
[402288006,1768649445778,-1016.13,0.00016438,3]
[402288008,1768649445788,-535.27896173,0.00016438,3]
[402288010,1768649445798,-500.0,0.00016438,3]
[402288013,1768649445810,-500.0,0.00016438,3]
[402288014,1768649445820,-500.0,0.00016438,3]
[402288017,1768649445831,-587.21,0.00016438,3]
[402288019,1768649445841,-500.0,0.00016438,3]
[402288021,1768649445851,-785.77,0.00016438,3]
[402288023,1768649445862,-500.0,0.00016438,3]
[402288025,1768649445872,-1289.75,0.00016438,3]
[402288026,1768649445881,-848.03,0.00016438,3]
[402288027,1768649445890,-500.0,0.00016438,3]
[402288028,1768649445900,-500.0,0.00016438,3]
[402288029,1768649445910,-816.49,0.00016438,3]
[402288031,1768649445920,-1000.0,0.00016438,2]